fUST/lending_fUST_20241123
["ID","MTS","AMOUNT","RATE_DAILY","PERIOD"]
[343127846,1732375832495,-500.0,0.00019993,2]
[343127848,1732375832505,-547.22,0.00019993,2]
[343127850,1732375832515,-1012.56,0.00019993,2]
[343127853,1732375832524,-500.0,0.00019993,2]
[343127855,1732375832534,-562.77,0.00019993,2]
[343127856,1732375832543,-915.85,0.00019994,2]
[343127858,1732375832552,-500.0,0.00019994,2]
[343127860,1732375832562,-613.64,0.00019994,2]
[343127863,1732375832572,-638.09,0.00019994,2]
[343127864,1732375832582,-500.0,0.00019994,2]
[343127866,1732375832590,-595.85031662,0.00019994,2]
[343127868,1732375832600,-500.0,0.00019994,2]
[343127870,1732375832610,-535.71,0.00019994,2]
[343127872,1732375832619,-1008.53,0.00019994,2]
[343127874,1732375832629,-500.0,0.00019994,2]
[343127876,1732375832638,-625.26,0.00019994,2]
[343127878,1732375832647,-651.01,0.00019994,2]
[343127880,1732375832656,-500.0,0.00019994,2]
[343127882,1732375832667,-500.0,0.00019994,2]
[343127884,1732375832676,-500.0,0.00019994,2]
[343127886,1732375832688,-500.0,0.00019994,2]
[343127888,1732375832697,-850.35,0.00019994,2]
[343127890,1732375832707,-594.66,0.00019994,2]
[343127892,1732375832718,-500.0,0.00019994,2]
[343127894,1732375832729,-500.0,0.00019994,2]
[343127896,1732375832739,-500.0,0.00019994,2]
[343127897,1732375832750,-500.0,0.00019994,2]
[343127899,1732375832763,-527.23,0.00019994,2]
[343127900,1732375832773,-605.47,0.00019994,2]
[343127901,1732375832782,-500.0,0.00019994,2]
[343127902,1732375832791,-500.0,0.00019994,2]
[343127903,1732375832801,-622.12809893,0.00019994,2]
[343127904,1732375832811,-500.0,0.00019994,2]
[343127905,1732375832821,-2794.17,0.00019994,2]
[343127906,1732375832830,-500.0,0.00019994,2]
[343127907,1732375832841,-1647.64,0.00019994,2]
[343127908,1732375832851,-500.0,0.00019994,2]
[343127909,1732375832860,-1003.9,0.00019994,2]
[343127910,1732375832870,-500.0,0.00019994,2]
[343127911,1732375832879,-1390.8,0.00019994,2]
[343127912,1732375832889,-623.49,0.00019994,2]
[343127913,1732375832898,-500.0,0.00019994,2]
[343127914,1732375832907,-572.37,0.00019994,2]
[343127915,1732375832919,-579.06,0.00019994,2]
[343127916,1732375832929,-500.0,0.00019994,2]
[343127917,1732375832939,-453.19163089,0.00019994,2]
[343127918,1732375832949,-500.0,0.00019994,2]
[343127919,1732375832959,-500.0,0.00019994,2]
[343127920,1732375832968,-557.86,0.00019994,2]
[343127921,1732375832982,-2599.42,0.00019994,2]
[343127922,1732375832994,-500.0,0.00019994,2]
[343127923,1732375833003,-500.0,0.00019994,2]
[343127924,1732375833014,-2619.65,0.00019994,2]
[343127925,1732375833024,-500.0,0.00019994,2]
[343127926,1732375833034,-500.0,0.00019994,2]
[343127927,1732375833045,-500.0,0.00019995,2]
[343127928,1732375833055,-500.0,0.00019995,2]
[343127929,1732375833066,-500.0,0.00019995,2]
[343127930,1732375833077,-500.0,0.00019995,2]
[343127931,1732375833087,-424.78681292,0.00019995,2]
[343127932,1732375833098,-200.0,0.00019995,2]
[343127933,1732375833108,-500.0,0.00019995,2]
[343127934,1732375833119,-500.0,0.00019995,2]
[343127935,1732375833130,-500.0,0.00019995,2]
[343127936,1732375833140,-500.0,0.00019995,2]
[343127937,1732375833150,-500.0,0.00019995,2]
[343127938,1732375833161,-500.0,0.00019995,2]
[343127939,1732375833171,-500.0,0.00019995,2]
[343127940,1732375833182,-500.0,0.00019995,2]
[343127941,1732375833192,-500.0,0.00019995,2]
[343127942,1732375833203,-601.0730591,0.00019995,2]
[343127943,1732375833213,-171.41815336,0.00019995,2]
[343127944,1732375833223,-1022.43,0.00019995,2]
[343127945,1732375833234,-500.0,0.00019995,2]
[343127946,1732375833244,-500.0,0.00019995,2]
[343127947,1732375833254,-500.0,0.00019995,2]
[343127948,1732375833264,-500.0,0.00019995,2]
[343127949,1732375833275,-479.22567255,0.00019995,2]
[343127950,1732375833285,-500.0,0.00019995,2]
[343127951,1732375833295,-500.0,0.00019995,2]
[343127952,1732375833305,-500.0,0.00019995,2]
[343127953,1732375833315,-500.0,0.00019995,2]
[343127954,1732375833326,-500.0,0.00019995,2]
[343127955,1732375833336,-500.0,0.00019995,2]
[343127956,1732375833346,-500.0,0.00019995,2]
[343127957,1732375833357,-500.0,0.00019995,2]
[343127958,1732375833367,-684.46,0.00019995,2]
[343127959,1732375833378,-500.0,0.00019995,2]
[343127960,1732375833389,-500.0,0.00019995,2]
[343127961,1732375833399,-620.66,0.00019995,2]
[343127962,1732375833410,-501.84,0.00019995,2]
[343127963,1732375833420,-500.0,0.00019995,2]
[343127964,1732375833431,-500.0,0.00019995,2]
[343127965,1732375833441,-500.0,0.00019995,2]
[343127966,1732375833451,-500.0,0.00019995,2]
[343127967,1732375833462,-500.0,0.00019995,2]
[343127968,1732375833473,-500.0,0.00019995,2]
[343127969,1732375833492,-500.0,0.00019995,2]
[343127970,1732375833503,-500.0,0.00019995,2]
[343127971,1732375833514,-500.0,0.00019995,2]
[343127972,1732375833525,-500.0,0.00019995,2]
[343127973,1732375833534,-500.0,0.00019995,2]
[343127974,1732375833545,-500.0,0.00019995,2]
[343127975,1732375833554,-500.0,0.00019995,2]
[343127976,1732375833564,-500.0,0.00019995,2]
[343127977,1732375833573,-500.0,0.00019995,2]
[343127978,1732375833583,-500.0,0.00019995,2]
[343127979,1732375833593,-751.78,0.00019995,2]
[343127980,1732375833603,-844.08,0.00019995,2]
[343127981,1732375833613,-500.0,0.00019995,2]
[343127982,1732375833622,-500.0,0.00019995,2]
[343127983,1732375833633,-500.0,0.00019995,2]
[343127984,1732375833643,-500.0,0.00019995,2]
[343127985,1732375833653,-500.0,0.00019995,2]
[343127986,1732375833663,-270.54548069,0.00019995,2]
[343127987,1732375833677,-500.0,0.00019995,2]
[343127988,1732375833686,-1515.31,0.00019996,2]
[343127989,1732375833696,-1672.09,0.00019996,2]
[343127990,1732375833707,-500.0,0.00019996,2]
[343127991,1732375833718,-1456.09,0.00019996,2]
[343127992,1732375833729,-833.39,0.00019996,2]
[343127993,1732375833739,-500.0,0.00019996,2]
[343127994,1732375833748,-571.91,0.00019996,2]
[343127995,1732375833758,-503.77,0.00019996,2]
[343127996,1732375833767,-1199.57,0.00019996,2]
[343127997,1732375833777,-500.0,0.00019996,2]
[343127998,1732375833787,-1722.52,0.00019996,2]
[343127999,1732375833797,-500.0,0.00019996,2]
[343128000,1732375833807,-758.38,0.00019996,2]
[343128001,1732375833816,-500.0,0.00019996,2]
[343128002,1732375833826,-832.79,0.00019996,2]
[343128003,1732375833835,-886.26,0.00019996,2]
[343128004,1732375833846,-500.0,0.00019996,2]
[343128005,1732375833856,-500.0,0.00019996,2]
[343128006,1732375833866,-500.0,0.00019996,2]
[343128007,1732375833875,-500.0,0.00019996,2]
[343128008,1732375833885,-500.0,0.00019996,2]
[343128009,1732375833895,-505.49,0.00019996,2]
[343128010,1732375833905,-1514.66,0.00019996,2]
[343128011,1732375833915,-3232.96,0.00019996,2]
[343128012,1732375833925,-500.0,0.00019996,2]
[343128013,1732375833935,-500.0,0.00019996,2]
[343128014,1732375833944,-500.0,0.00019996,2]
[343128015,1732375833955,-500.0,0.00019996,2]
[343128016,1732375833964,-500.0,0.00019996,2]
[343128017,1732375833975,-500.0,0.00019996,2]
[343128018,1732375833985,-357.41370421,0.00019996,2]
[343128019,1732375833994,-1015.33,0.00019996,2]
[343128020,1732375834004,-1821.31,0.00019996,2]
[343128021,1732375834014,-558.25794629,0.00019996,2]
[343128022,1732375834024,-521.6,0.00019996,2]
[343128023,1732375834034,-500.0,0.00019996,2]
[343128024,1732375834044,-500.0,0.00019998,2]
[343128025,1732375834053,-659.92,0.00019998,2]
[343128026,1732375834063,-500.0,0.00019998,2]
[343128027,1732375834073,-500.0,0.00019998,2]
[343128028,1732375834082,-560.03,0.00019998,2]
[343128029,1732375834092,-500.0,0.00019998,2]
[343128030,1732375834102,-500.0,0.00019998,2]
[343128031,1732375834112,-500.0,0.00019998,2]
[343128032,1732375834122,-1253.7,0.00019998,2]
[343128033,1732375834132,-500.0,0.00019998,2]
[343128034,1732375834142,-726.57,0.00019998,2]
[343128035,1732375834151,-500.0,0.00019998,2]
[343128036,1732375834162,-500.0,0.00019998,2]
[343128037,1732375834172,-500.0,0.00019998,2]
[343128038,1732375834182,-500.0,0.00019998,2]
[343128039,1732375834192,-500.0,0.00019998,2]
[343128040,1732375834202,-1000.0,0.0002,2]
[343128041,1732375834212,-359.609416,0.00020039,2]
[343128042,1732375834222,-500.0,0.00020264,2]
[343128043,1732375834236,-500.0,0.00020264,2]
[343128044,1732375834246,-500.0,0.00020264,2]
[343128045,1732375834257,-500.0,0.00020264,2]
[343128046,1732375834268,-500.0,0.00020264,2]
[343128047,1732375834279,-500.0,0.00020264,2]
[343128048,1732375834290,-500.0,0.00020264,2]
[343128049,1732375834301,-574.82348943,0.00020264,2]
[343128050,1732375834313,-500.0,0.00020264,2]
[343128051,1732375834323,-500.0,0.00020264,2]
[343128052,1732375834333,-500.0,0.00020264,2]
[343128053,1732375834343,-500.0,0.00020264,2]
[343128054,1732375834435,-500.0,0.00020264,2]
[343128055,1732375834456,-500.0,0.00020264,2]
[343128056,1732375834466,-500.0,0.00020264,2]
[343128057,1732375834478,-500.0,0.00020264,2]
[343128058,1732375834488,-500.0,0.00020264,2]
[343128059,1732375834499,-500.0,0.00020264,2]
[343128060,1732375834509,-459.65936956,0.00020264,2]
[343128061,1732375834520,-500.0,0.00020264,2]
[343128062,1732375834530,-500.0,0.00020264,2]
[343128063,1732375834540,-500.0,0.00020264,2]
[343128064,1732375834550,-500.0,0.00020264,2]
[343128065,1732375834559,-500.0,0.00020264,2]
[343128066,1732375834569,-500.0,0.00020264,2]
[343128067,1732375834579,-432.316191,0.00020264,2]
[343128068,1732375834588,-393.73693345,0.00020264,2]
[343128069,1732375834598,-500.0,0.00020264,2]
[343128070,1732375834607,-500.0,0.00020264,2]
[343128071,1732375834617,-500.0,0.00020264,2]
[343128072,1732375834626,-500.0,0.00020264,2]
[343128073,1732375834635,-168.63791493,0.00020264,2]
[343128074,1732375834645,-500.0,0.00020264,2]
[343128075,1732375834655,-500.0,0.00020264,2]
[343128076,1732375834665,-500.0,0.00020264,2]
[343128077,1732375834674,-500.0,0.00020264,2]
[343128078,1732375834686,-500.0,0.00020264,2]
[343128079,1732375834696,-500.0,0.00020264,2]
[343128080,1732375834707,-500.0,0.00020264,2]
[343128081,1732375834716,-285.82551538,0.00020265,2]
[343128082,1732375834729,-500.0,0.00020266,2]
[343128083,1732375834738,-4657.37,0.00020266,2]
[343128084,1732375834749,-1153.0,0.00020266,2]
[343128085,1732375834759,-3445.7,0.00020266,2]
[343128086,1732375834769,-559.71,0.00020266,2]
[343128087,1732375834778,-752.56,0.00020266,2]
[343128088,1732375834787,-500.0,0.00020266,2]
[343128089,1732375834797,-19902.62,0.00020267,2]
[343128090,1732375834807,-500.0,0.00020267,2]
[343128091,1732375834817,-500.0,0.00020267,2]
[343128092,1732375834826,-654.72,0.00020267,2]
[343128093,1732375834835,-221.88389917,0.00020267,2]
[343128094,1732375834846,-754.52,0.00020267,2]
[343128095,1732375834855,-500.0,0.00020267,2]
[343128096,1732375834865,-500.0,0.00020267,2]
[343128097,1732375834874,-500.0,0.00020267,2]
[343128098,1732375834884,-500.0,0.00020267,2]
[343128099,1732375834893,-500.0,0.00020267,2]
[343128100,1732375834902,-547.22,0.00020267,2]
[343128101,1732375834912,-1012.56,0.00020267,2]
[343128102,1732375834921,-500.0,0.00020267,2]
[343128103,1732375834931,-562.77,0.00020267,2]
[343128104,1732375834942,-915.85,0.00020268,2]
[343128105,1732375834952,-500.0,0.00020268,2]
[343128106,1732375834962,-613.64,0.00020268,2]
[343128107,1732375834972,-638.09,0.00020268,2]
[343128108,1732375834984,-500.0,0.00020268,2]
[343128109,1732375834994,-500.0,0.00020268,2]
[343128110,1732375835003,-535.71,0.00020268,2]
[343128111,1732375835012,-1008.53,0.00020268,2]
[343128112,1732375835021,-500.0,0.00020268,2]
[343128113,1732375835031,-625.26,0.00020268,2]
[343128114,1732375835040,-651.01,0.00020268,2]
[343128115,1732375835049,-500.0,0.00020268,2]
[343128116,1732375835060,-500.0,0.00020268,2]
[343128117,1732375835070,-500.0,0.00020268,2]
[343128118,1732375835080,-500.0,0.00020268,2]
[343128119,1732375835091,-850.35,0.00020268,2]
[343128120,1732375835101,-594.66,0.00020268,2]
[343128121,1732375835111,-500.0,0.00020268,2]
[343128122,1732375835122,-500.0,0.00020268,2]
[343128123,1732375835132,-500.0,0.00020268,2]
[343128124,1732375835141,-500.0,0.00020268,2]
[343128125,1732375835151,-527.23,0.00020268,2]
[343128126,1732375835160,-605.47,0.00020268,2]
[343128127,1732375835169,-500.0,0.00020268,2]
[343128128,1732375835179,-500.0,0.00020268,2]
[343128129,1732375835188,-500.0,0.00020268,2]
[343128130,1732375835198,-2794.17,0.00020268,2]
[343128131,1732375835208,-500.0,0.00020268,2]
[343128132,1732375835218,-1647.64,0.00020268,2]
[343128133,1732375835230,-500.0,0.00020268,2]
[343128134,1732375835239,-1003.9,0.00020268,2]
[343128135,1732375835249,-500.0,0.00020268,2]
[343128136,1732375835259,-1390.8,0.00020268,2]
[343128137,1732375835269,-623.49,0.00020268,2]
[343128138,1732375835279,-500.0,0.00020268,2]
[343128139,1732375835289,-572.37,0.00020268,2]
[343128140,1732375835298,-579.06,0.00020268,2]
[343128141,1732375835308,-500.0,0.00020268,2]
[343128142,1732375835318,-500.0,0.00020268,2]
[343128143,1732375835327,-500.0,0.00020268,2]
[343128144,1732375835336,-557.86,0.00020268,2]
[343128145,1732375835346,-2599.42,0.00020268,2]
[343128146,1732375835355,-500.0,0.00020268,2]
[343128147,1732375835364,-500.0,0.00020268,2]
[343128148,1732375835373,-2619.65,0.00020268,2]
[343128149,1732375835383,-500.0,0.00020268,2]
[343128150,1732375835396,-500.0,0.00020268,2]
[343128151,1732375835410,-500.0,0.00020269,2]
[343128152,1732375835424,-424.52483343,0.00020269,2]
[343128153,1732375835436,-500.0,0.00020269,2]
[343128154,1732375835447,-500.0,0.00020269,2]
[343128155,1732375835461,-200.0,0.00020269,2]
[343128156,1732375835474,-303.86473509,0.00020269,2]
[343128157,1732375835487,-500.0,0.00020269,2]
[343128158,1732375835501,-500.0,0.00020269,2]
[343128159,1732375835514,-500.0,0.00020269,2]
[343128160,1732375835526,-500.0,0.00020269,2]
[343128161,1732375835539,-500.0,0.00020269,2]
[343128162,1732375835552,-546.96010133,0.00020269,2]
[343128163,1732375835567,-500.0,0.00020269,2]
[343128164,1732375835580,-500.0,0.00020269,2]
[343128165,1732375835591,-1022.43,0.00020269,2]
[343128166,1732375835606,-500.0,0.00020269,2]
[343128167,1732375835618,-500.0,0.00020269,2]
[343128168,1732375835630,-500.0,0.00020269,2]
[343128169,1732375835640,-500.0,0.00020269,2]
[343128170,1732375835651,-500.0,0.00020269,2]
[343128171,1732375835663,-500.0,0.00020269,2]
[343128172,1732375835675,-500.0,0.00020269,2]
[343128173,1732375835693,-500.0,0.00020269,2]
[343128174,1732375835706,-500.0,0.00020269,2]
[343128175,1732375835721,-500.0,0.00020269,2]
[343128176,1732375835736,-500.0,0.00020269,2]
[343128177,1732375835749,-500.0,0.00020269,2]
[343128178,1732375835763,-684.46,0.00020269,2]
[343128179,1732375835777,-500.0,0.00020269,2]
[343128180,1732375835787,-500.0,0.00020269,2]
[343128181,1732375835798,-620.66,0.00020269,2]
[343128182,1732375835809,-501.84,0.00020269,2]
[343128183,1732375835822,-614.65410189,0.00020269,2]
[343128184,1732375835837,-493.25361597,0.00020269,2]
[343128185,1732375835850,-500.0,0.00020269,2]
[343128186,1732375835862,-500.0,0.00020269,2]
[343128187,1732375835873,-500.0,0.00020269,2]
[343128188,1732375835884,-500.0,0.00020269,2]
[343128189,1732375835896,-410.72762171,0.00020269,2]
[343128190,1732375835908,-500.0,0.00020269,2]
[343128191,1732375835919,-500.0,0.00020269,2]
[343128192,1732375835929,-598.2072683,0.00020269,2]
[343128193,1732375835940,-500.0,0.00020269,2]
[343128194,1732375835951,-500.0,0.00020269,2]
[343128195,1732375835962,-500.0,0.00020269,2]
[343128196,1732375835973,-500.0,0.00020269,2]
[343128197,1732375835986,-500.0,0.00020269,2]
[343128198,1732375835997,-500.0,0.00020269,2]
[343128199,1732375836009,-751.78,0.00020269,2]
[343128200,1732375836020,-844.08,0.00020269,2]
[343128201,1732375836031,-500.0,0.00020269,2]
[343128202,1732375836042,-500.0,0.00020269,2]
[343128203,1732375836053,-500.0,0.00020269,2]
[343128204,1732375836064,-500.0,0.00020269,2]
[343128205,1732375836076,-500.0,0.00020269,2]
[343128206,1732375836087,-500.0,0.00020269,2]
[343128207,1732375836098,-1515.31,0.0002027,2]
[343128208,1732375836109,-1672.09,0.0002027,2]
[343128209,1732375836121,-500.0,0.0002027,2]
[343128210,1732375836132,-1456.09,0.0002027,2]
[343128211,1732375836143,-833.39,0.0002027,2]
[343128212,1732375836154,-500.0,0.0002027,2]
[343128213,1732375836166,-571.91,0.0002027,2]
[343128214,1732375836177,-503.77,0.0002027,2]
[343128215,1732375836189,-1199.57,0.0002027,2]
[343128216,1732375836200,-500.0,0.0002027,2]
[343128217,1732375836211,-1722.52,0.0002027,2]
[343128218,1732375836223,-500.0,0.0002027,2]
[343128219,1732375836236,-758.38,0.0002027,2]
[343128220,1732375836247,-451.94163319,0.0002027,2]
[343128221,1732375836258,-832.79,0.0002027,2]
[343128222,1732375836270,-886.26,0.0002027,2]
[343128223,1732375836281,-500.0,0.0002027,2]
[343128224,1732375836292,-500.0,0.0002027,2]
[343128225,1732375836304,-525.24,0.0002027,2]
[343128226,1732375836315,-500.0,0.0002027,2]
[343128227,1732375836326,-500.0,0.0002027,2]
[343128228,1732375836338,-505.49,0.0002027,2]
[343128229,1732375836349,-1514.66,0.0002027,2]
[343128230,1732375836360,-3232.96,0.0002027,2]
[343128231,1732375836371,-500.0,0.0002027,2]
[343128232,1732375836384,-500.0,0.0002027,2]
[343128233,1732375836395,-500.0,0.0002027,2]
[343128234,1732375836407,-500.0,0.0002027,2]
[343128235,1732375836419,-500.0,0.0002027,2]
[343128236,1732375836431,-500.0,0.0002027,2]
[343128237,1732375836442,-1015.33,0.0002027,2]
[343128238,1732375836454,-1821.31,0.0002027,2]
[343128239,1732375836465,-521.6,0.0002027,2]
[343128240,1732375836477,-500.0,0.0002027,2]
[343128241,1732375836495,-218.73316623,0.00020272,2]
[343128242,1732375836507,-659.92,0.00020272,2]
[343128243,1732375836518,-500.0,0.00020272,2]
[343128244,1732375836530,-560.03,0.00020272,2]
[343128245,1732375836542,-500.0,0.00020272,2]
[343128246,1732375836552,-500.0,0.00020272,2]
[343128247,1732375836695,-500.0,0.00020272,2]
[343128248,1732375836707,-1253.7,0.00020272,2]
[343128249,1732375836717,-726.57,0.00020272,2]
[343128250,1732375836727,-500.0,0.00020272,2]
[343128251,1732375836745,-500.0,0.00020272,2]
[343128252,1732375836755,-500.0,0.00020272,2]
[343128253,1732375836764,-251.604312,0.00020521,2]
[343128254,1732375836774,-500.0,0.0002054,2]
[343128255,1732375836784,-4657.37,0.0002054,2]
[343128256,1732375836794,-1153.0,0.0002054,2]
[343128257,1732375836803,-3445.7,0.0002054,2]
[343128258,1732375836812,-559.71,0.0002054,2]
[343128259,1732375836823,-752.56,0.0002054,2]
[343128260,1732375836833,-500.0,0.0002054,2]
[343128261,1732375836843,-500.0,0.00020541,2]
[343128262,1732375836852,-198.76228986,0.00020541,2]
[343128263,1732375836862,-500.0,0.00020541,2]
[343128264,1732375836871,-19902.62,0.00020541,2]
[343128265,1732375836881,-500.0,0.00020541,2]
[343128266,1732375836891,-500.0,0.00020541,2]
[343128267,1732375836900,-654.72,0.00020541,2]
[343128268,1732375836910,-754.52,0.00020541,2]
[343128269,1732375836919,-500.0,0.00020541,2]
[343128270,1732375836928,-500.0,0.00020541,2]
[343128271,1732375836937,-592.18424883,0.00020541,2]
[343128272,1732375836946,-500.0,0.00020541,2]
[343128273,1732375836956,-500.0,0.00020541,2]
[343128274,1732375836965,-547.22,0.00020541,2]
[343128275,1732375836974,-1012.56,0.00020541,2]
[343128276,1732375836987,-500.0,0.00020541,2]
[343128277,1732375836996,-562.77,0.00020541,2]
[343128278,1732375837006,-915.85,0.00020542,2]
[343128279,1732375837016,-500.0,0.00020542,2]
[343128280,1732375837026,-613.64,0.00020542,2]
[343128281,1732375837036,-638.09,0.00020542,2]
[343128282,1732375837046,-500.0,0.00020542,2]
[343128283,1732375837056,-500.0,0.00020542,2]
[343128284,1732375837065,-535.71,0.00020542,2]
[343128285,1732375837075,-1008.53,0.00020542,2]
[343128286,1732375837085,-500.0,0.00020542,2]
[343128287,1732375837094,-625.26,0.00020542,2]
[343128288,1732375837104,-651.01,0.00020542,2]
[343128289,1732375837114,-500.0,0.00020542,2]
[343128290,1732375837124,-500.0,0.00020542,2]
[343128291,1732375837133,-500.0,0.00020542,2]
[343128292,1732375837143,-500.0,0.00020542,2]
[343128293,1732375837152,-850.35,0.00020542,2]
[343128294,1732375837162,-594.66,0.00020542,2]
[343128295,1732375837172,-500.0,0.00020542,2]
[343128296,1732375837182,-500.0,0.00020542,2]
[343128297,1732375837192,-500.0,0.00020542,2]
[343128298,1732375837202,-500.0,0.00020542,2]
[343128299,1732375837211,-527.23,0.00020542,2]
[343128300,1732375837222,-605.47,0.00020542,2]
[343128301,1732375837234,-500.0,0.00020542,2]
[343128302,1732375837243,-500.0,0.00020542,2]
[343128303,1732375837253,-500.0,0.00020542,2]
[343128304,1732375837263,-2794.17,0.00020542,2]
[343128305,1732375837273,-500.0,0.00020542,2]
[343128306,1732375837282,-1647.64,0.00020542,2]
[343128307,1732375837292,-500.0,0.00020542,2]
[343128308,1732375837302,-1003.9,0.00020542,2]
[343128309,1732375837311,-500.0,0.00020542,2]
[343128310,1732375837321,-1390.8,0.00020542,2]
[343128311,1732375837331,-623.49,0.00020542,2]
[343128312,1732375837342,-500.0,0.00020542,2]
[343128313,1732375837352,-572.37,0.00020542,2]
[343128314,1732375837362,-579.06,0.00020542,2]
[343128315,1732375837371,-500.0,0.00020542,2]
[343128316,1732375837381,-500.0,0.00020542,2]
[343128317,1732375837391,-500.0,0.00020542,2]
[343128318,1732375837402,-557.86,0.00020542,2]
[343128319,1732375837412,-2599.42,0.00020542,2]
[343128320,1732375837425,-500.0,0.00020542,2]
[343128321,1732375837435,-500.0,0.00020542,2]
[343128322,1732375837444,-2619.65,0.00020542,2]
[343128324,1732375837454,-500.0,0.00020542,2]
[343128326,1732375837464,-500.0,0.00020542,2]
[343128328,1732375837474,-500.0,0.00020543,2]
[343128330,1732375837487,-500.0,0.00020543,2]
[343128332,1732375837497,-500.0,0.00020543,2]
[343128334,1732375837508,-500.0,0.00020543,2]
[343128335,1732375837518,-200.0,0.00020543,2]
[343128336,1732375837529,-500.0,0.00020543,2]
[343128339,1732375837539,-500.0,0.00020543,2]
[343128341,1732375837549,-491.8172539,0.00020543,2]
[343128343,1732375837559,-500.0,0.00020543,2]
[343128344,1732375837568,-500.0,0.00020543,2]
[343128345,1732375837578,-500.0,0.00020543,2]
[343128346,1732375837588,-1022.43,0.00020543,2]
[343128347,1732375837597,-500.0,0.00020543,2]
[343128348,1732375837606,-500.0,0.00020543,2]
[343128349,1732375837616,-500.0,0.00020543,2]
[343128350,1732375837626,-500.0,0.00020543,2]
[343128352,1732375837636,-500.0,0.00020543,2]
[343128353,1732375837645,-500.0,0.00020543,2]
[343128355,1732375837655,-500.0,0.00020543,2]
[343128356,1732375837664,-500.0,0.00020543,2]
[343128357,1732375837675,-500.0,0.00020543,2]
[343128358,1732375837687,-500.0,0.00020543,2]
[343128359,1732375837697,-500.0,0.00020543,2]
[343128360,1732375837707,-500.0,0.00020543,2]
[343128361,1732375837716,-684.46,0.00020543,2]
[343128362,1732375837725,-500.0,0.00020543,2]
[343128363,1732375837736,-500.0,0.00020543,2]
[343128365,1732375837746,-620.66,0.00020543,2]
[343128367,1732375837759,-501.84,0.00020543,2]
[343128369,1732375837768,-172.99963236,0.00020543,2]
[343128371,1732375837779,-500.0,0.00020543,2]
[343128373,1732375837788,-270.0885445,0.00020543,2]
[343128376,1732375837799,-500.0,0.00020543,2]
[343128377,1732375837809,-394.54269556,0.00020543,2]
[343128378,1732375837819,-500.0,0.00020543,2]
[343128379,1732375837829,-425.04301833,0.00020543,2]
[343128380,1732375837839,-500.0,0.00020543,2]
[343128381,1732375837850,-500.0,0.00020543,2]
[343128382,1732375837859,-439.62657729,0.00020543,2]
[343128384,1732375837869,-500.0,0.00020543,2]
[343128386,1732375837879,-500.0,0.00020543,2]
[343128388,1732375837888,-751.78,0.00020543,2]
[343128390,1732375837898,-844.08,0.00020543,2]
[343128392,1732375837907,-500.0,0.00020543,2]
[343128394,1732375837917,-500.0,0.00020543,2]
[343128396,1732375837926,-500.0,0.00020543,2]
[343128398,1732375837936,-500.0,0.00020543,2]